Cogmind - Beta 13 @@@ ROGUE MODE // 2024.02.29 @ 22:04:45 Player: Minty Result: Destroyed by Y-54 Guardian with Gatling Laser Performance ------------- Evolutions (3) 1500 Regions Visited (6) 1200 Robots Destroyed (112) 560 Value Destroyed (2581) 2581 Prototype IDs (13) 260 Alien Tech Used (0) 0 Bonus (419) 419 TOTAL SCORE: 6520 Bonus ------- High Alert Combat Kills 334 Follower Combat Kills 218 Friendly Fire -133 Cogmind --------- Core Integrity 0/700 Matter 300/300 Energy 61/100 System Corruption 8% Temperature Cool (12) Movement Flying (26) Location -7/Storage Parts ------- > --- POWER (1) -------- (None) > --- PROPULSION (3) --- Cooled VTOL Module Cooled VTOL Module > --- UTILITY (5) ------ Core Analyzer System Shield System Shield > --- WEAPON (4) ------- Power Maul > --- INVENTORY (5) ---- Improved Airjet Improved Airjet Cooled VTOL Module Propulsion Shielding Heavy Ion Cannon Peak State ------------ > --- POWER ------------ Micro Nuclear Core > --- PROPULSION ------- Improved Airjet Improved Airjet Improved Airjet > --- UTILITY ---------- Improved Heat Sink Small Storage Unit Propulsion Shielding Hacking Suite System Shield > --- WEAPON ----------- Improved Medium Laser Improved Medium Laser Improved Medium Laser Spear > --- INVENTORY -------- Improved Deuterium Engine Xenon Bombardment Thruster Improved Heat Sink Improved EM Pulse Cannon Heavy Ion Cannon Improved Grenade Launcher Power Maul Power Maul [Rating: 46] Favorites ----------- Power Cooled Ion Engine Engine Cooled Ion Engine Power Core Micro Nuclear Core Propulsion Combat Airjet Treads Light Treads Leg Aluminum Leg Wheel Compact Wheel Hover Unit Combat Airjet Flight Unit Cooled VTOL Module Utility Small Storage Unit Device Improved Heat Sink Storage Small Storage Unit Processor Improved Signal Interpreter Hackware System Shield Protection Improved Light Armor Plating Weapon Improved Medium Laser Energy Gun Improved Medium Laser Energy Cannon Beam Cannon Ballistic Gun Light Assault Rifle Launcher Improved Grenade Launcher Impact Weapon Heavy Hammer Piercing Weapon Spear Special Melee Weapon Datajack Build | -11 -10 -10 -9 -8 -7 -7 ------- Run | Yrd Mat Min Mat Mat Fac Sto Slots Evolved 6 | . . . 2 2 2 . Power . | . . . . . . . Propulsion 1 | . . . . 1 . . Utility 3 | . . . 1 1 1 . Weapon 2 | . . . 1 . 1 . Parts Attached 106 | . 10 8 19 12 33 24 Power 12 | . 1 2 1 1 4 3 Engine 8 | . 1 1 1 1 2 2 Core 4 | . . 1 . . 2 1 Reactor . | . . . . . . . Propulsion 30 | . 5 2 2 3 5 13 Treads 3 | . 3 . . . . . Leg 1 | . . 1 . . . . Wheel 4 | . 2 . . 2 . . Hover 15 | . . 1 2 1 5 6 Flight 7 | . . . . . . 7 Utility 29 | . 2 4 6 4 9 4 Device 11 | . 2 1 4 1 3 . Storage 2 | . . 1 . . 1 . Processor 4 | . . . . 1 2 1 Hackware 3 | . . . . . 2 1 Protection 9 | . . 2 2 2 1 2 Artifact . | . . . . . . . Weapon 35 | . 2 . 10 4 15 4 Energy Gun 12 | . . . 5 1 6 . Energy Cannon 10 | . 2 . 3 1 4 . Ballistic Gun . | . . . . . . . Ballistic Cannon . | . . . . . . . Launcher 7 | . . . 1 2 1 3 Special Weapon . | . . . . . . . Impact Weapon 4 | . . . 1 . 2 1 Slashing Weapon . | . . . . . . . Piercing Weapon 1 | . . . . . 1 . Special Melee Weapon 1 | . . . . . 1 . Unidentified Prototypes 6 | . . . 2 . 2 2 Corrupted Parts 1 | . . . . . 1 . System Corruption 6 | . . . . . 6 . Parts Lost 16 | . . 1 4 2 2 7 Power 3 | . . . . . . 3 Propulsion 5 | . . . 2 1 1 1 Utility 5 | . . 1 2 . . 2 Weapon 3 | . . . . 1 1 1 Highest Loss Streak 4 | . . 1 3 2 2 4 To Critical Strikes . | . . . . . . . Average Slot Usage (%) 87 | . 98 74 92 87 90 75 Engine 7 | . 14 9 11 9 2 . Core 2 | . . 4 . . 4 4 Wheel 5 | . 24 4 . 7 3 . Hover 13 | . . 11 16 16 17 2 Flight 1 | . . . . . . 19 Device 8 | . 12 4 11 9 7 1 Storage 10 | . 14 14 11 9 7 7 Processor 1 | . . . . 2 4 3 Hackware 3 | . . . . . 5 15 Protection 5 | . . 4 8 6 4 6 Energy Gun 9 | . . . 21 . 15 4 Energy Cannon 7 | . 10 20 8 4 2 . Ballistic Gun 2 | . 17 . . . . . Launcher 2 | . . . . 12 4 . Impact Weapon 3 | . . . 2 9 3 5 Naked Turns . | . . . . . . . Heaviest Build 56 | 10 17 19 26 44 56 24 Greatest Support 40 | 20 40 32 18 24 30 27 Greatest Overweight (x) 4 | . . 1 2 4 2 4 Average Overweight (x) . | . . . 1 1 . . Largest Inventory Capacity 8 | . 8 8 8 8 8 8 Average Capacity 8 | . 8 8 8 8 8 8 Most Carried 8 | . 8 8 8 8 8 8 Average Carried 7 | . 7 7 7 7 7 7 Final Capacity 8 | 8 8 8 8 8 8 5 Final Carried 8 | 6 8 8 8 8 8 5 Class Distribution -------------------- 26% | Scavenger-Mutant 20% | Mutant 16% | Scavenger-Tank 8% | Hacker-Sprinter 8% | Hacker-Tank 6% | Skirmisher 5% | Tank 4% | Scavenger-Gunner Dominant Class ---------------- Mutant | -10/Materials Scavenger-Mutant | -10/Mines Scavenger-Tank | -9/Materials Scavenger-Mutant | -8/Materials Hacker-Tank | -7/Factory Hacker-Sprinter | -7/Storage Resources | -11 -10 -10 -9 -8 -7 -7 ----------- Run | Yrd Mat Min Mat Mat Fac Sto Matter Collected 1540 | 200 138 80 200 214 392 316 Remotely 148 | . 128 . 20 . . . Salvage Created 3897 | . 266 395 1201 571 680 784 Parts 183 | . 9 14 66 36 32 26 Haulers Intercepted 7 | . 1 . 3 1 . 2 Recyclers Shooed 4 | . 1 2 1 . . . Parts Field Recycled . | . . . . . . . Retrieved Matter . | . . . . . . . Parts Self-Destructed . | . . . . . . . Prevented . | . . . . . . . Kills | -11 -10 -10 -9 -8 -7 -7 ------- Run | Yrd Mat Min Mat Mat Fac Sto Combat Hostiles Destroyed 59 | . 3 4 13 17 9 13 Melee 4 | . . . . 2 . 2 Guns 13 | . 1 . 7 . 5 . Cannons 13 | . 2 4 2 4 1 . AOE 18 | . . . 3 8 1 6 Classes Destroyed 15 | . 4 1 5 2 3 . Worker 14 | . . . 6 1 2 5 Builder 12 | . . . 3 4 4 1 Tunneler 2 | . . . . . 2 . Hauler 7 | . 1 . 3 1 . 2 Recycler 11 | . 1 3 5 . . 2 Mechanic 2 | . . . . . 2 . Operator 3 | . 1 . . . 1 1 Watcher 2 | . . . 2 . . . Swarmer 17 | . . . 4 7 . 6 Grunt 25 | . 3 3 9 7 3 . Duelist 1 | . . . . 1 . . Sentry 11 | . . . 1 1 4 5 Hunter 4 | . . . . 1 1 2 Programmer 1 | . . . . . 1 . Assembled 1 | . . 1 . . . . Best Kill Streak 14 | . 4 3 6 10 4 14 Combat Bots Only 8 | . 2 2 4 8 4 3 Max Kills in Single Turn 5 | . 1 1 3 5 1 3 Gunslinging . | . . . . . . . Exploded 3 | . . . 3 3 1 2 Melee 1 | . . . . 1 . 1 Uniques/NPCs Destroyed . | . . . . . . . Combat | -11 -10 -10 -9 -8 -7 -7 -------- Run | Yrd Mat Min Mat Mat Fac Sto Hostile Shots Fired 624 | . 14 19 66 58 176 291 Missed 262 | . 7 4 20 17 71 143 Damage Taken 4016 | . 73 425 634 642 963 1279 Core 1100 | . 21 174 121 75 222 487 Absorbed by Shields . | . . . . . . . Redirected to Shielding 45 | . . . . . 19 26 Regen/Repaired (Parts) 39 | . . . . . 39 . Core Remaining (%) 69 | 100 . 22 69 86 . . Volleys Fired 156 | . 30 24 46 16 31 9 Largest 4 | . 2 2 3 2 4 3 Hottest 224 | . 120 120 176 120 224 168 Shots Fired 353 | . 60 37 128 32 82 14 Gun 212 | . 38 . 98 . 68 8 Cannon 120 | . 22 37 29 24 8 . Launcher 21 | . . . 1 8 6 6 Special . | . . . . . . . Kinetic 38 | . 38 . . . . . Thermal 294 | . 22 37 127 24 76 8 Explosive 21 | . . . 1 8 6 6 Electromagnetic . | . . . . . . . Robot Hit Streak 15 | . 10 15 12 4 11 4 Robot Miss Streak 4 | . 2 3 4 3 3 1 Penetration Max . | . . . . . . . Secondary Targets 2 | . . . 1 . 1 . Max Gunslinging Chain 1 | . . . 1 . 1 . Shots Hit Robots 265 | . 45 26 71 24 65 34 Core Hits 134 | . 13 11 35 23 30 22 Critical Kills 5 | . . 1 . 2 1 1 Critical Parts Destroyed 13 | . 1 . . 3 . 9 Critical Strikes 35 | . 1 1 3 5 12 13 Burn 15 | . . . 3 . 10 2 Meltdown 2 | . . 1 . 1 . . Destroy 1 | . 1 . . . . . Smash 16 | . . . . 4 1 11 Impale 1 | . . . . . 1 . Melee Attacks 68 | . . . 7 9 24 28 Impact 54 | . . . 7 9 10 28 Slashing . | . . . . . . . Piercing 13 | . . . . . 13 . Sneak Attacks 21 | . . . 2 4 7 8 Combat Hostiles . | . . . . . . . Follow-up Attacks . | . . . . . . . Damage Inflicted 8068 | . 515 458 1556 1426 1821 2292 Guns 2055 | . 215 . 946 . 791 103 Cannons 1371 | . 300 458 262 214 137 . Explosions 1682 | . . . 112 635 286 649 Melee 2960 | . . . 236 577 607 1540 Ramming . | . . . . . . . Kinetic 215 | . 215 . . . . . Thermal 3211 | . 300 458 1208 214 928 103 Explosive 1682 | . . . 112 635 286 649 Electromagnetic . | . . . . . . . Impact 2700 | . . . 236 577 347 1540 Slashing . | . . . . . . . Piercing 260 | . . . . . 260 . Highest Corruption 8 | . . . . . 8 8 Average Corruption 7 | . . . . . 7 8 Corruption Purged . | . . . . . . . Corruption Blocked . | . . . . . . . Effects 22 | . . . . . 11 11 Message Errors 3 | . . . . . . 3 Matter Fused 8 | . . . . . 5 3 Heat Flow Errors 2 | . . . . . 2 . Energy Discharges 2 | . . . . . 1 1 Data Loss (minor) 3 | . . . . . 2 1 Data Loss (major) 2 | . . . . . . 2 Alerts 1 | . . . . . 1 . Weapon Failures 1 | . . . . . . 1 Overload Shots . | . . . . . . . Overflow Damage 1442 | . . 5 117 296 149 875 Projectiles 5 | . . 5 . . . . Explosions 79 | . . . . . 16 63 Melee 1358 | . . . 117 296 133 812 Knockbacks 6 | . . . . 3 . 3 Impact 6 | . . . . 3 . 3 Kinetic . | . . . . . . . Secondary . | . . . . . . . Self-Inflicted Damage 147 | . . . . 114 . 33 Shots 4 | . . . . 3 . 1 Rammed . | . . . . . . . Targets Rammed . | . . . . . . . Kicked . | . . . . . . . Crushed . | . . . . . . . Highest Temperature 349 | . 240 220 282 45 349 94 Average Temperature 73 | . 80 60 70 18 103 39 Received Heat Transfer 1062 | . 42 66 174 261 249 270 Siege Activations . | . . . . . . . Robots Corrupted . | . . . . . . . Combat Hostiles . | . . . . . . . Parts Fried 26 | . . . 4 10 1 11 Impact Corruptions 32 | . . . 4 8 3 17 Robots Melted 6 | . . 1 1 1 2 1 Combat Hostiles 5 | . . . 1 1 2 1 Parts Melted 30 | . 1 . 10 4 13 2 Heat Transferred 7881 | . 629 962 2886 444 2590 370 Parts Sabotaged . | . . . . . . . Parts Stolen . | . . . . . . . Parts Stripped . | . . . . . . . Power Chain Reactions . | . . . . . . . Alert | -11 -10 -10 -9 -8 -7 -7 ------- Run | Yrd Mat Min Mat Mat Fac Sto Peak Influence 754 | . 192 167 520 754 628 741 Initial 343 | . . 74 . 209 343 226 Average 345 | . 67 94 360 534 457 446 Maximum Alert Level 3 | . . . 2 3 2 3 Low Security (%) 31 | . 100 100 21 . . . Level 1 23 | . . . 25 30 33 44 Level 2 41 | . . . 53 37 66 51 Level 3 4 | . . . . 32 . 4 Level 4 . | . . . . . . . Level 5 . | . . . . . . . High Security . | . . . . . . . Max Security . | . . . . . . . Squads Dispatched 13 | . 2 . 2 2 6 1 Investigation 10 | . 1 . 2 2 4 1 Extermination 1 | . . . . . 1 . Reinforcement 2 | . 1 . . . 1 . Assault . | . . . . . . . Garrison . | . . . . . . . Intercept . | . . . . . . . Searches Triggered . | . . . . . . . Construction Impeded . | . . . . . . . Haulers Reinforced . | . . . . . . . Active Scanning Responses . | . . . . . . . Cargo Convoy Interrupts . | . . . . . . . Stealth | -11 -10 -10 -9 -8 -7 -7 --------- Run | Yrd Mat Min Mat Mat Fac Sto Distress Signals 3 | . 1 . 2 . . . Communications Jammed . | . . . . . . . Distress Signals . | . . . . . . . Times Spotted 91 | . 9 7 25 19 13 18 Peak Tracking Total 8 | . 2 3 5 6 4 8 Tactical Retreats 1 | . . . . . . 1 Traps | -11 -10 -10 -9 -8 -7 -7 ------- Run | Yrd Mat Min Mat Mat Fac Sto Traps Triggered 1 | . . . . . 1 . Indirectly . | . . . . . . . Trap Hack Attempts . | . . . . . . . Triggered . | . . . . . . . Disarmed . | . . . . . . . Reprogrammed . | . . . . . . . Reused . | . . . . . . . Traps Extracted . | . . . . . . . Installed . | . . . . . . . Triggered . | . . . . . . . Machines | -11 -10 -10 -9 -8 -7 -7 ---------- Run | Yrd Mat Min Mat Mat Fac Sto Machines Disabled 9 | . 1 . 3 1 2 2 Max in Single Turn 2 | . 1 . 2 1 1 1 Machines Repaired . | . . . . . . . Machines Dismantled . | . . . . . . . Machines Sabotaged . | . . . . . . . Overloaded Fab Kills . | . . . . . . . Hacking | -11 -10 -10 -9 -8 -7 -7 --------- Run | Yrd Mat Min Mat Mat Fac Sto Machines Accessed 20 | . 2 . 5 2 7 4 Terminals 7 | . 1 . 2 1 1 2 Fabricators 3 | . . . . . 3 . Repair Stations 2 | . . . 1 . 1 . Recycling Units 4 | . 1 . 1 . 1 1 Scanalyzers 3 | . . . 1 1 1 . Garrison Access 1 | . . . . . . 1 Total Hacks 75 | . 5 . 18 9 32 11 Successful 38 | . 4 . 8 5 18 3 Failed 37 | . 1 . 10 4 14 8 Catastrophic 2 | . . . 1 . . 1 Database Lockouts . | . . . . . . . Manual 16 | . 1 . 2 3 6 4 Terminals 25 | . 3 . 8 4 5 5 Fabricators 14 | . . . . . 14 . Repair Stations 4 | . . . 2 . 2 . Recycling Units 13 | . 2 . 3 . 6 2 Scanalyzers 15 | . . . 5 5 5 . Garrison Access 4 | . . . . . . 4 Terminal Hacks 10 | . 2 . 3 1 2 2 Robot Analysis 1 | . . . . . 1 . Prototype ID Bank 4 | . 1 . 2 . . 1 Open Door 1 | . . . . . . 1 Branch Access Points 1 | . . . . . 1 . Locate Traps 1 | . 1 . . . . . Patrol Status 1 | . . . 1 . . . Hauler Manifests 1 | . . . . 1 . . Fabricator Hacks 5 | . . . . . 5 . Network Status 1 | . . . . . 1 . Load Schematic 1 | . . . . . 1 . Build 3 | . . . . . 3 . Repair Station Hacks 3 | . . . 1 . 2 . Scan Component 1 | . . . . . 1 . Repair 1 | . . . . . 1 . Refit 1 | . . . 1 . . . Recycling Unit Hacks 5 | . 1 . 1 . 3 . Process 1 | . . . . . 1 . Report Inventory 3 | . 1 . 1 . 1 . Retrieve Matter 1 | . . . . . 1 . Scanalyzer 7 | . . . 3 2 2 . Insert Component 4 | . . . 2 1 1 . Analyze 3 | . . . 1 1 1 . Garrison Access Hacks . | . . . . . . . Unauthorized Hacks 8 | . 1 . . 2 4 1 Terminals 2 | . . . . 2 . . Botnet 1 | . . . . 1 . . Search 1 | . . . . 1 . . Fabricators 4 | . . . . . 4 . Prioritize 1 | . . . . . 1 . Liberate 1 | . . . . . 1 . Fabnet 1 | . . . . . 1 . Download 1 | . . . . . 1 . Repair Stations . | . . . . . . . Recycling Units 1 | . 1 . . . . . Tunnel 1 | . 1 . . . . . Scanalyzers . | . . . . . . . Garrison Access 1 | . . . . . . 1 Redirect 1 | . . . . . . 1 Data Cores Recovered 1 | . 1 . . . . . Used . | . . . . . . . Hacking Detections 15 | . 2 . 4 2 4 3 Full Trace Events 9 | . . . 4 1 3 1 Feedback Events . | . . . . . . . Feedback Blocked . | . . . . . . . Robot Schematics Acquired 1 | . . . . . 1 . Robots Built . | . . . . . . . Authchips . | . . . . . . . Time 134 | . . . . . 134 . Total Robot Build Rating . | . . . . . . . Part Schematics Acquired 3 | . . . 1 1 1 . Parts Built 3 | . . . . . 3 . Authchips . | . . . . . . . Time 133 | . . . . . 133 . Total Part Build Rating 10 | . . . . . 10 . Parts Repaired 1 | . . . . . 1 . Time 38 | . . . . . 38 . Parts Recycled . | . . . . . . . Recycled Matter 45 | . . . . . 45 . Retrieved Matter 45 | . . . . . 45 . Retrieved Components . | . . . . . . . Parts Scanalyzed 3 | . . . 2 . 1 . Part Schematics Acquired 3 | . . . 1 1 1 . Parts Damaged . | . . . . . . . Bothacking | -11 -10 -10 -9 -8 -7 -7 ------------ Run | Yrd Mat Min Mat Mat Fac Sto Used RIF Installer . | . . . . . . . Robots Hacked 1 | . . . . . 1 . Non-combat 1 | . . . . . 1 . Combat . | . . . . . . . Robot Hacks Applied 1 | . . . . . 1 . find_station 1 | . . . . . 1 . Relay Couplers Released . | . . . . . . . Fabnet Peak Effective % . | . . . . . . . Robots Rewired . | . . . . . . . Allies Hacked . | . . . . . . . Hacks Repelled . | . . . . . . . Allies | -11 -10 -10 -9 -8 -7 -7 -------- Run | Yrd Mat Min Mat Mat Fac Sto Total Allies 3 | . . 3 . . . . Largest Group 3 | . . 3 3 . . . Highest-Rated Group 40 | . . 40 40 . . . Highest-Rated Ally 16 | . . 16 16 . . . Total Orders . | . . . . . . . Ally Attacks 43 | . . 6 37 . . . Total Damage 502 | . . 91 411 . . . Kills 9 | . . . 9 . . . Allies Corrupted . | . . . . . . . Allies Melted . | . . . . . . . Intel | -11 -10 -10 -9 -8 -7 -7 ------- Run | Yrd Mat Min Mat Mat Fac Sto Robot Analysis Total 1 | . . . . . 1 . Derelict Logs Recovered 2 | . . 2 . . . . Drone Launches . | . . . . . . . Drone Recoveries . | . . . . . . . Exploration | -11 -10 -10 -9 -8 -7 -7 ------------- Run | Yrd Mat Min Mat Mat Fac Sto Turns Passed 3087 | . 361 443 742 390 867 284 Spaces Moved 2434 | 1 245 312 362 279 887 348 Core . | . . . . . . . Treads 3 | . 3 . . . . . Legs 25 | 1 23 1 . . . . Wheels 559 | . 219 44 . 130 166 . Hover 1522 | . . 267 362 149 721 23 Flight 325 | . . . . . . 325 Fastest Speed 26 | 120 100 80 76 58 52 26 Average Speed 87 | 120 102 106 149 103 67 32 Slowest Speed 295 | 120 160 190 220 196 220 295 Overloaded Moves 2 | . . . . . . 2 Propulsion Burnouts . | . . . . . . . Robots Hopped . | . . . . . . . Cave-ins Triggered . | . . . . . . . Exploration Rate (%) 33 | 2 45 50 33 23 17 62 Regions Visited 6 Branch Regions 2 Pre-discovered Areas 1 | . 1 . . . . . Known Exits Taken 1 | . . . . . 1 . Unknown Exits Taken 5 | 1 1 1 1 1 . . Scrap Searched 1 | . . 1 . . . . Spaces Dug 6 | . . . . . 5 1 Terrain Destroyed 155 | . . . . 84 28 43 Melee 6 | . . . . . 5 1 Projectile 2 | . . . . . 2 . AOE 147 | . . . . 84 21 42 Terrain Rammed . | . . . . . . . Walls Destroyed . | . . . . . . . Machines Disabled . | . . . . . . . Actions | -11 -10 -10 -9 -8 -7 -7 --------- Run | Yrd Mat Min Mat Mat Fac Sto Total 2992 | . 303 389 447 335 1059 459 Wait 91 | . . 32 1 3 44 11 Move 2428 | . 244 311 361 278 886 348 Hop . | . . . . . . . Pick Up 41 | . 10 2 4 5 11 9 Fast Attach 61 | . 2 6 8 9 22 14 Attach 20 | . 4 . 4 1 4 7 Detach 12 | . . 1 2 2 2 5 Swap 25 | . 4 2 7 2 7 3 Drop 90 | . 9 11 7 10 28 25 Fire 156 | . 30 24 46 16 31 9 Melee 68 | . . . 7 9 24 28 Ram . | . . . . . . . Kick . | . . . . . . . Crush . | . . . . . . . Escape Stasis . | . . . . . . . Rewire . | . . . . . . . Trap . | . . . . . . . Miscellaneous . | . . . . . . . Route ------- -11/Scrapyard -10/Materials -10/Mines (discovered 2 exits: *Mat x2) -9/Materials -8/Materials -7/Factory (discovered 5 exits: *Fac / *Sto x2 / Low x2) -7/Storage (discovered 1 exit: *Fac) History --------- Turn | Location | Event 1 | -11/Scrapyard | Discovered new exit (range 0) 1 | -11/Scrapyard | Entered Materials 203 | -10/Materials | Discovered new exit (range 16) 313 | -10/Materials | Build established: Mutant 362 | -10/Materials | Entered Mines 363 | -10/Mines | Assembled infested the area 367 | -10/Mines | Learned Materials trap positions 377 | -10/Mines | Met a Derelict bent on vengeance 411 | -10/Mines | Learned Materials security intel 418 | -10/Mines | Core integrity fell below 50% 480 | -10/Mines | Discovered new exit (range 12) 551 | -10/Mines | Assisted by bots powering up and referring to "LRC-V3" 772 | -10/Mines | Discovered new exit (range 5) 805 | -10/Mines | Entered Materials 805 | -9/Materials | Accompanied by 3 allies 805 | -9/Materials | Evolved 2 slots: Utility x1, Weapon x1 806 | -9/Materials | Loaded intel: 10 trap records 1188 | -9/Materials | Build established: Scavenger-Tank 1223 | -9/Materials | Discovered new exit (range 5) 1495 | -9/Materials | Lost 3 parts (1n2u) 1547 | -9/Materials | Entered another Materials area 1547 | -8/Materials | Evolved 2 slots: Propulsion x1, Utility x1 1706 | -8/Materials | Destroyed 8 combat bots 1748 | -8/Materials | Discovered new exit (range 16) 1832 | -8/Materials | Build established: Scavenger-Mutant 1937 | -8/Materials | Entered Factory 1937 | -7/Factory | Evolved 2 slots: Utility x1, Weapon x1 2029 | -7/Factory | Repaired Imp. Heat Sink? 2343 | -7/Factory | Fabricated Imp. Medium Laser (x1) 2395 | -7/Factory | Identified exit to Storage 2395 | -7/Factory | Identified exit to Lower Caves 2510 | -7/Factory | Discovered new exit (range 10) 2524 | -7/Factory | Identified exit to Factory 2707 | -7/Factory | Fabricated Power Maul (x2) 2804 | -7/Factory | Entered Storage 2966 | -7/Storage | Core integrity fell below 50% 2990 | -7/Storage | Discovered exit to Factory (range 16) 3027 | -7/Storage | Lost 3 parts (2p1w) 3072 | -7/Storage | Core integrity fell below 20% 3088 | -7/Storage | Destroyed by Y-54 Guardian with Gatling Laser Last Messages --------------- 03061_ Y-54 Guardian system corrupted by crushing effect. 03068_ Cld. VTOL Module destroyed. 03070_ Slug penetrates Wall. 03071_ Lgt. Ion Engine destroyed. 03073_ Penetrated by Slug. 03073_ Y-54 Guardian suffers critical hit (Smash). 03073_ Destroyed Gatling Laser. 03073_ Y-54 Guardian system corrupted by crushing effect. 03074_ Y-54 Guardian system terminally corrupted. 03074_ Imp. Heat Sink fried. 03075_ Imp. Light Armor Plating destroyed. 03076_ Y-54 Guardian destroyed. 03077_ Penetrated by Slug. 03079_ H-55 Commando suffers critical hit (Smash). 03079_ Destroyed Carbon-fiber Leg. 03079_ H-55 Commando system corrupted by crushing effect. 03079_ H-55 Commando knocked back. 03080_ H-55 Commando system terminally corrupted. 03085_ Y-54 Guardian suffers critical hit (Smash). 03088_ Sml. Storage Unit destroyed. Map ----- +----------------------------------------------------+ | ????????????????????????????????? | | ????????????????????????????????? | | ????????????????????????????????? | | ???###############???############ | | ???# #???# | | ???# #???# ## | | ???# ##### ## | | ???# + | | ???# ###### | | ???# """"" ?????# | | ???# """"" # ???#### | | ???####### """"" ##?#????? # | | ?????????# """"" #????????# # | | ?????????# ##???????# # | | ?????????# ########## + | | ??######## # # # | | ??# ! =[%# """ # ## | | ??# # "T # | | ??# ! """ + | | ??# =! % !# # | | ??# =% """"" ### | | ??# Y#####%##### """"" #?# | | ??# #???# ###### """"" #?# | | ??### Y!%#???# #????# #?## | | ????# =[#####+#######" ""## #??? | | ???##+##@## % #?#"R""####??? | | ???# Y!*# """"" #?#""" #?????? | | ???# """ # """"" ############?? | | ???# "Y %# """"" # #?? | | ???# """ # + #?? | | ???# # """"" # #?? | | ???# # """"" ### ########?? | | ???### #### """"" #?# #????????? | | ?????###??#! #?# #????????? | | ????############## #?# #????????? | | ????# ###?###?# #????????? | | ????#""" ""#######+###??????? | | ????#""" ""# % #??????? | | ????#""" "# #??????? | | ????#""" ""# #??????? | | ????#""" ""# = #??????? | | ????# ### #??????? | | ????# #?# % #??????? | | ????# #?# ! #??????? | | ??#######+####?# ]#??????? | | ??# # ########+######## ### | | ??# # # | | ??# + ! + | | ??##### % # | | ??????# #####+############### | +----------------------------------------------------+ Best States ------------- Heat Dissipation 62 Energy Generation 15 Energy Capacity 280 Matter Stores 300 Matter Capacity 300 Sight Range 16 Terrain Scan Density 110 ECM Strength 1 Armor Coverage 600 Propulsion Shielding 33 Evasion (%) 64 Core Analysis 6 Recoil Reduction 2 Offensive Hacking 10 Defensive Hacking 20 Item Schematics ----------------- Beam Cannon | -9/Materials | Scanalyzed Imp. Medium Laser | -8/Materials | Scanalyzed Imp. Grenade Launcher | -7/Factory | Scanalyzed Robot Schematics ------------------ L-41 Fighter | -7/Factory | Downloaded Fabricated ------------ Imp. Medium Laser | x1 | -7/Factory Power Maul | x2 | -7/Factory | Preloaded Alien Tech Used ----------------- None Achievements -------------- None Challenges ------------ None Game ------ Seed OmegaAccelerationGreatsword Manual? 0 Play Time 00:31:26 Cumulative 682.4 hours Start 2024.02.29 @ 21:12:51 End 2024.02.29 @ 22:04:45 Sessions 1 Manual Loads 0 Difficulty Rogue Special Mode None Game No. 701 Rogue 426 Adventurer 123 Explorer 152 Win Type - Total 25 Types 19/0/4/1/0/0/0/1/0 Lore% 80 Gallery% 91 Achievement% 76 Wizard Run 0 Options --------- Layout 0 ASCII 0 Keyboard 1 Movement Numpad Keybinds 0 Fullscreen 2 Font 18/SmallcapsGlow Map View 76x50 Zoom Use 0% Tactical HUD 1 Map Filters NONE Filters NONE Steam 1 RUN: 0f5c2ed6-83af-46e9-9ca6-52b4cc84c7b9